bitfinex-derivatives/quotes_BTCF0:USTF0_20250711
["timestamp","ask_amount","ask_price","bid_price","bid_amount"]
[1752198128442,0.2139637,116050.0,116040.0,0.81595269]
[1752198129144,0.2129637,116050.0,116040.0,0.81595269]
[1752198129441,0.2129637,116050.0,116040.0,0.64362409]
[1752198130836,0.2129637,116050.0,116040.0,0.42293007]
[1752198131041,0.43365772,116050.0,116040.0,0.42293007]
[1752198131241,0.2129637,116050.0,116040.0,0.42293007]
[1752198134540,0.2129637,116050.0,116040.0,0.64362409]
[1752198135143,0.2129637,116050.0,116040.0,0.65238723]
[1752198135342,0.2129637,116050.0,116040.0,0.64362409]
[1752198135737,0.2129637,116050.0,116040.0,0.42293007]
[1752198138251,0.2129637,116050.0,116040.0,0.59525867]
[1752198139043,0.04065,116050.0,116040.0,0.59525867]
[1752198139252,0.30498997,116060.0,116040.0,0.90211459]
[1752198139546,0.29924654,116060.0,116050.0,0.64572402]
[1752198140142,0.29924654,116060.0,116050.0,0.81803782]
[1752198140342,0.29924654,116060.0,116050.0,0.81790782]
[1752198140542,0.34663997,116060.0,116050.0,0.81790782]
[1752198140846,0.34763997,116060.0,116050.0,0.5972138]
[1752198141047,0.34763997,116060.0,116050.0,0.4249]
[1752198141647,0.56833399,116060.0,116050.0,0.5972138]
[1752198141947,0.56901399,116060.0,116050.0,0.5972138]
[1752198142246,0.30192654,116060.0,116050.0,1.1895038]
[1752198142448,0.30124654,116060.0,116050.0,1.1895038]
[1752198143444,0.30024654,116060.0,116050.0,1.1895038]
[1752198143742,0.30124654,116060.0,116050.0,1.1895038]
[1752198144151,0.29924654,116060.0,116050.0,1.1895038]
[1752198144850,0.29924654,116060.0,116050.0,1.41019782]
[1752198145345,0.02500974,116060.0,116050.0,1.41019782]
[1752198146856,0.02500974,116060.0,116050.0,1.41119782]
[1752198149158,0.19730864,116060.0,116050.0,1.1905038]
[1752198149452,0.21388864,116060.0,116050.0,1.1905038]
[1752198149751,0.21388864,116060.0,116050.0,1.1925038]
[1752198150854,0.21388864,116060.0,116050.0,1.41319782]
[1752198152243,0.21388864,116060.0,116050.0,1.1925038]
[1752198152445,0.21388864,116060.0,116050.0,0.6003438]
[1752198152643,0.21388864,116060.0,116050.0,1.1922938]
[1752198153048,0.21388864,116060.0,116050.0,1.1924238]
[1752198153553,0.24558864,116060.0,116050.0,1.1924238]
[1752198154755,0.46628266,116060.0,116050.0,1.1924238]
[1752198155151,0.24558864,116060.0,116050.0,1.1924238]
[1752198155349,0.46628266,116060.0,116050.0,1.1924238]
[1752198155750,0.46696266,116060.0,116050.0,1.1924238]
[1752198156959,0.46696266,116060.0,116050.0,1.1614538]
[1752198157160,0.24626864,116060.0,116050.0,1.1615838]
[1752198157459,0.24558864,116060.0,116050.0,1.1929838]
[1752198158154,0.24558864,116060.0,116050.0,1.1928538]
[1752198158661,0.24558864,116060.0,116050.0,1.1929838]
[1752198162163,0.29198207,116060.0,116050.0,1.1929838]
[1752198162362,0.51267609,116060.0,116050.0,1.1929838]
[1752198162767,0.29198207,116060.0,116050.0,1.41367782]
[1752198162957,0.02500974,116060.0,116050.0,1.41367782]
[1752198163460,0.07140317,116060.0,116050.0,1.41367782]
[1752198165462,0.02500974,116060.0,116050.0,1.41367782]
[1752198167276,0.02500974,116060.0,116050.0,1.1929838]
[1752198167459,0.21388874,116060.0,116050.0,1.1929838]
[1752198167658,0.21388874,116060.0,116050.0,1.41367782]
[1752198167873,0.21388874,116060.0,116050.0,1.1929838]
[1752198168075,0.21388874,116060.0,116050.0,1.41367782]
[1752198168365,0.21388874,116060.0,116050.0,1.1929838]
[1752198170066,0.24538874,116060.0,116050.0,1.41367782]
[1752198170266,0.24538874,116060.0,116050.0,1.1929838]
[1752198170462,0.24538874,116060.0,116050.0,0.6009438]
[1752198170765,0.24538874,116060.0,116050.0,1.1944638]
[1752198172068,0.46608276,116060.0,116050.0,1.1944638]
[1752198172269,0.46676276,116060.0,116050.0,1.1944638]
[1752198172568,0.46676276,116060.0,116050.0,0.364]
[1752198172773,0.90475619,116060.0,116050.0,0.003]
[1752198172962,0.85836276,116060.0,116050.0,0.003]
[1752198173157,1.45228276,116060.0,116050.0,0.003]
[1752198174264,1.49880144,116060.0,116050.0,0.002]
[1752198174460,1.49980144,116060.0,116050.0,0.002]
[1752198174860,1.45328276,116060.0,116050.0,0.002]
[1752198175071,0.1873138,116050.0,116040.0,0.17232847]
[1752198175261,0.46325782,116050.0,116040.0,0.17232847]
[1752198175573,0.49523782,116050.0,116040.0,0.17232847]
[1752198176463,0.49623782,116050.0,116040.0,0.17232847]
[1752198177269,0.54274144,116050.0,116040.0,0.17232847]
[1752198178271,0.51939144,116050.0,116040.0,7e-08]
[1752198179365,0.47288782,116050.0,116040.0,7e-08]
[1752198179879,1.10088546,116050.0,116040.0,7e-08]
[1752198180875,0.88019144,116050.0,116040.0,7e-08]
[1752198186080,0.9479543,116050.0,116040.0,7e-08]
[1752198195480,0.5871543,116050.0,116040.0,0.36100007]
[1752198195785,1.13381068,116050.0,116040.0,0.39270007]
[1752198195985,1.15816068,116050.0,116040.0,0.39270007]
[1752198196688,1.12686068,116050.0,116040.0,0.39270007]
[1752198197386,1.1733643,116050.0,116040.0,0.39270007]
[1752198197783,1.5341643,116050.0,116040.0,0.03190007]
[1752198198191,1.1733643,116050.0,116040.0,0.03190007]
[1752198199387,1.1733643,116050.0,116040.0,7e-08]
[1752198199688,1.31982028,116050.0,116040.0,7e-08]
[1752198199884,1.5405143,116050.0,116040.0,7e-08]
[1752198203492,0.23649742,116050.0,116040.0,0.00020007]
[1752198203694,0.1893138,116050.0,116040.0,0.81935279]
[1752198204195,0.2119338,116050.0,116040.0,0.81935279]
[1752198204893,0.2109338,116050.0,116040.0,0.82135279]
[1752198205897,0.2099338,116050.0,116040.0,0.82135279]
[1752198206194,0.2099338,116050.0,116040.0,0.82435279]
[1752198209293,0.2099338,116050.0,116040.0,1.19641877]
[1752198209496,0.2099338,116050.0,116040.0,1.19633877]
[1752198209699,0.2099338,116050.0,116040.0,1.41703279]
[1752198210501,0.2099338,116050.0,116040.0,1.41715279]
[1752198219699,0.2099338,116050.0,116040.0,1.19645877]
[1752198219897,0.43062782,116050.0,116040.0,1.19632877]
[1752198220099,0.46302782,116050.0,116040.0,0.63024007]
[1752198220302,0.46302782,116050.0,116040.0,0.00320007]
[1752198220612,0.49604783,116050.0,116040.0,0.00320007]
[1752198220904,0.49604783,116050.0,116040.0,0.17552877]
[1752198221299,0.49604783,116050.0,116040.0,0.53632877]
[1752198222110,0.49604783,116050.0,116040.0,0.53532877]
[1752198222308,0.49604783,116050.0,116040.0,0.53332877]
[1752198223806,0.49604783,116050.0,116040.0,0.36100007]
[1752198225300,0.49604783,116050.0,116040.0,0.53332877]
[1752198225505,0.49604783,116050.0,116040.0,0.36100007]
[1752198225699,0.49604783,116050.0,116040.0,0.17252877]
[1752198225900,0.49604783,116050.0,116040.0,0.53332877]
[1752198227314,0.49604783,116050.0,116040.0,0.17252877]
[1752198227499,0.49604783,116050.0,116040.0,0.53332877]
[1752198228116,1.68432783,116050.0,116040.0,0.53332877]
[1752198228308,0.27535381,116050.0,116040.0,0.53332877]
[1752198228497,0.2099338,116050.0,116040.0,0.75402279]
[1752198228804,0.2099338,116050.0,116040.0,0.81795279]
[1752198229701,0.2421338,116050.0,116040.0,0.81782279]
[1752198233615,0.28863742,116050.0,116040.0,0.81782279]
[1752198233808,0.2421338,116050.0,116040.0,0.81782279]
[1752198234512,0.02262,116050.0,116040.0,1.39944681]
[1752198234717,0.04663336,116060.0,116050.0,0.1726438]
[1752198234718,0.25901236,116060.0,116050.0,0.1726438]
[1752198235015,0.25901236,116060.0,116050.0,1.41351782]
[1752198235913,0.26001236,116060.0,116050.0,1.41351782]
[1752198236514,0.04863336,116060.0,116050.0,1.41351782]
[1752198236713,0.00212974,116060.0,116050.0,1.41351782]
[1752198239014,0.00199974,116060.0,116050.0,1.58585382]
[1752198239406,0.001,116060.0,116050.0,1.58585382]
[1752198239610,0.001,116060.0,116050.0,1.58885382]
[1752198240305,0.001,116060.0,116050.0,0.99517382]
[1752198240816,0.001,116060.0,116050.0,1.58861382]
[1752198241408,0.04650362,116070.0,116060.0,0.172299]
[1752198241612,0.04650362,116070.0,116060.0,0.81769302]
[1752198242414,0.33263092,116080.0,116070.0,0.1722841]
[1752198242617,0.33331092,116080.0,116070.0,1.41209812]
[1752198242814,0.30193092,116080.0,116070.0,1.42977896]
[1752198244218,0.2554273,116080.0,116070.0,1.42977896]
[1752198244818,0.2554273,116080.0,116070.0,1.17672494]
[1752198245121,0.2877273,116080.0,116070.0,1.17672494]
[1752198245310,0.3196273,116080.0,116070.0,0.58356494]
[1752198245506,0.58682494,116080.0,116070.0,1.17652494]
[1752198245711,0.36613092,116080.0,116070.0,1.17652494]
[1752198246519,0.36685093,116080.0,116070.0,1.17652494]
[1752198249120,0.32034731,116080.0,116070.0,1.17652494]
[1752198249322,0.3196273,116080.0,116070.0,1.17652494]
[1752198249523,0.3196273,116080.0,116070.0,0.58356494]
[1752198250025,0.3196273,116080.0,116070.0,0.55076494]
[1752198251126,0.3196273,116080.0,116070.0,0.62066864]
[1752198252018,0.3196273,116080.0,116070.0,0.6029878]
[1752198255626,0.36613092,116080.0,116070.0,0.6029878]
[1752198257030,0.36613092,116080.0,116070.0,0.4307037]
[1752198257530,0.36613092,116080.0,116070.0,0.6029878]
[1752198257729,0.58682494,116080.0,116070.0,0.6029878]
[1752198257929,0.58758494,116080.0,116070.0,0.6029878]
[1752198258228,0.54108132,116080.0,116070.0,0.6029878]
[1752198259226,0.60306624,116080.0,116070.0,0.6029878]
[1752198260732,0.38237222,116080.0,116070.0,0.6029878]
[1752198261032,0.38237222,116080.0,116070.0,0.4307037]
[1752198261634,0.38237222,116080.0,116070.0,0.6029878]
[1752198262456,0.38237222,116080.0,116070.0,0.82368182]
[1752198263635,0.38237222,116080.0,116070.0,0.85548182]
[1752198264036,0.3203873,116080.0,116070.0,0.85548182]
[1752198264237,0.3196273,116080.0,116070.0,0.85548182]
[1752198267438,0.3196273,116080.0,116070.0,0.86895099]
[1752198270342,0.3196273,116080.0,116070.0,0.64825697]
[1752198270541,0.3196273,116080.0,116070.0,0.86895099]
[1752198270842,0.2554273,116080.0,116070.0,0.86895099]
[1752198271044,0.2554273,116080.0,116070.0,0.90065099]
[1752198271236,0.30190108,116080.0,116070.0,0.88718182]
[1752198272850,0.52244792,116080.0,116070.0,0.88703464]
[1752198273238,0.52312792,116080.0,116070.0,0.88703464]
[1752198274050,0.30258108,116080.0,116070.0,0.88703464]
[1752198274253,0.52244792,116080.0,116070.0,0.88703464]
[1752198276552,0.30190108,116080.0,116070.0,0.88703464]
[1752198276852,0.52244792,116080.0,116070.0,0.88703464]
[1752198277945,0.52316793,116080.0,116070.0,0.88703464]
[1752198280455,0.30262109,116080.0,116070.0,0.88703464]
[1752198280647,0.52244792,116080.0,116070.0,0.88703464]
[1752198281250,0.52244792,116080.0,116070.0,0.52623464]
[1752198281450,0.52244792,116080.0,116070.0,0.88703464]
[1752198283651,0.47597414,116080.0,116070.0,0.86880378]
[1752198283850,0.54225414,116080.0,116070.0,0.86880378]
[1752198286361,0.54225414,116080.0,116070.0,0.83700378]
[1752198286557,0.54225414,116080.0,116070.0,0.82353464]
[1752198288060,0.58872792,116080.0,116070.0,0.82353464]
[1752198289058,0.58872792,116080.0,116070.0,0.6029878]
[1752198289260,0.58872792,116080.0,116070.0,0.82353464]
[1752198293660,0.37338062,116080.0,116070.0,0.82353464]
[1752198293856,0.1967093,116080.0,116070.0,1.07448148]
[1752198294062,0.07023378,116080.0,116070.0,1.10588148]
[1752198294860,0.24250308,116080.0,116070.0,1.10588148]
[1752198295057,0.1960293,116080.0,116070.0,1.10588148]
[1752198295557,0.24250308,116080.0,116070.0,1.10588148]
[1752198296762,0.24250308,116080.0,116070.0,0.88533464]
[1752198298865,0.47948992,116080.0,116070.0,1.47749464]
[1752198299170,0.54078992,116080.0,116070.0,1.47749464]
[1752198299359,0.54146992,116080.0,116070.0,1.47749464]
[1752198299560,0.55698106,116080.0,116070.0,1.47749464]
[1752198300071,0.49499614,116080.0,116070.0,1.47749464]
[1752198300663,0.2432493,116080.0,116070.0,1.47749464]
[1752198300864,0.5096421,116080.0,116070.0,1.47749464]
[1752198301868,0.5103221,116080.0,116070.0,1.47749464]
[1752198302063,0.07096596,116080.0,116070.0,1.69804148]
[1752198302264,0.04652596,116080.0,116070.0,1.69804148]
[1752198302468,0.10507492,116090.0,116080.0,0.1722693]
[1752198302671,0.10507492,116090.0,116080.0,1.03776298]
[1752198302972,0.10507492,116090.0,116080.0,0.81716783]
[1752198303269,0.02665,116090.0,116080.0,0.81716783]
[1752198303569,0.08863492,116090.0,116080.0,0.81716783]
[1752198303870,0.08963492,116090.0,116080.0,0.81716783]
[1752198305170,0.074165,116090.0,116080.0,0.81716783]
[1752198305558,0.02865,116090.0,116080.0,0.81716783]
[1752198306372,0.2009044,116090.0,116080.0,1.40928783]
[1752198306869,0.2474194,116090.0,116080.0,1.40928783]
[1752198308962,0.075165,116090.0,116080.0,1.40928783]
[1752198309374,0.2474195,116090.0,116080.0,0.81716783]
[1752198309570,0.2638595,116090.0,116080.0,1.40924783]
[1752198311973,0.2173445,116090.0,116080.0,1.40924783]
[1752198312160,0.2173445,116090.0,116080.0,1.1887493]
[1752198312365,0.2173445,116090.0,116080.0,1.40924783]
[1752198313072,0.2173445,116090.0,116080.0,1.42747]
[1752198313966,0.2638595,116090.0,116080.0,1.42747]
[1752198315073,0.2638595,116090.0,116080.0,1.20697147]
[1752198315273,0.2638595,116090.0,116080.0,1.42705096]
[1752198316570,0.2638595,116090.0,116080.0,1.42745234]
[1752198318173,0.2638595,116090.0,116080.0,1.20695381]
[1752198318374,0.2638595,116090.0,116080.0,1.42745234]
[1752198318670,0.2638595,116090.0,116080.0,0.44260451]
[1752198318874,0.2638595,116090.0,116080.0,0.5330694]
[1752198319074,0.54675803,116090.0,116080.0,0.5330694]
[1752198319374,0.3262595,116090.0,116080.0,0.5330694]
[1752198319569,0.54747804,116090.0,116080.0,0.5330694]
[1752198320276,0.54747804,116090.0,116080.0,0.95796]
[1752198320476,0.50638804,116090.0,116080.0,1.1302294]
[1752198321176,0.45987304,116090.0,116080.0,1.1302294]
[1752198322382,0.49911304,116090.0,116080.0,1.1302294]
[1752198322774,0.27861451,116090.0,116080.0,1.1302294]
[1752198323083,0.49839303,116090.0,116080.0,1.1302294]
[1752198324185,0.49839303,116090.0,116080.0,0.5330694]
[1752198324380,0.49907303,116090.0,116080.0,0.5330694]
[1752198324685,0.2558145,116090.0,116080.0,0.5330694]
[1752198324878,0.3244095,116090.0,116080.0,0.5330694]
[1752198325178,0.2778945,116090.0,116080.0,0.5330694]
[1752198325578,0.32441375,116090.0,116080.0,0.5330694]
[1752198326285,0.32441375,116090.0,116080.0,0.75356793]
[1752198326784,0.12095925,116090.0,116080.0,0.75356793]
[1752198326985,0.27673375,116090.0,116080.0,0.81786793]
[1752198327684,0.29321375,116090.0,116080.0,0.81786793]
[1752198328982,0.29321375,116090.0,116080.0,0.5973694]
[1752198329189,0.29321375,116090.0,116080.0,1.41470793]
[1752198338391,0.29321375,116090.0,116080.0,0.81786793]
[1752198338597,0.29321375,116090.0,116080.0,1.41498793]
[1752198343798,0.2466945,116090.0,116080.0,1.41498793]
[1752198344910,0.46720628,116090.0,116080.0,1.63551296]
[1752198345410,0.51372553,116090.0,116080.0,1.63551296]
[1752198345612,0.46788628,116090.0,116080.0,1.63551296]
[1752198346111,0.46788628,116090.0,116080.0,1.41500118]
[1752198347613,0.5298712,116090.0,116080.0,1.41500118]
[1752198347809,0.5298712,116090.0,116080.0,0.3928]
[1752198348004,0.5298712,116090.0,116080.0,0.95712]
[1752198348209,0.5600712,116090.0,116080.0,1.17763178]
[1752198348716,0.5600712,116090.0,116080.0,1.34990118]
[1752198351117,0.5600712,116090.0,116080.0,1.1293894]
[1752198351316,0.5600712,116090.0,116080.0,1.34990118]
[1752198351515,0.33955942,116090.0,116080.0,1.57041296]
[1752198351717,0.5593912,116090.0,116080.0,1.57041296]
[1752198352019,0.5593912,116090.0,116080.0,1.34990118]
[1752198352209,0.56011121,116090.0,116080.0,1.34990118]
[1752198355618,0.54465942,116090.0,116080.0,1.34990118]
[1752198355917,0.49812629,116090.0,116080.0,1.34990118]
[1752198356918,0.54465949,116090.0,116080.0,1.34990118]
[1752198358016,0.54465949,116090.0,116080.0,1.34978118]
[1752198358215,0.49812629,116090.0,116080.0,1.34978118]
[1752198358415,0.49812629,116090.0,116080.0,0.75358118]
[1752198358617,0.49812629,116090.0,116080.0,1.34978118]
[1752198360022,0.54465924,116090.0,116080.0,1.34978118]
[1752198360222,0.49812629,116090.0,116080.0,1.57029296]
[1752198361625,0.49812629,116090.0,116080.0,0.97409296]
[1752198361826,0.49812629,116090.0,116080.0,1.34950118]
[1752198362629,0.54465919,116090.0,116080.0,1.34950118]
[1752198363327,0.32414741,116090.0,116080.0,1.34950118]
[1752198363626,0.54393918,116090.0,116080.0,1.34950118]
[1752198365416,0.54393918,116090.0,116080.0,1.57001296]
[1752198365618,0.54393918,116090.0,116080.0,1.34950118]
[1752198365821,0.54461918,116090.0,116080.0,1.34906118]
[1752198366123,0.1877494,116080.0,116070.0,0.68578246]
[1752198366428,0.43097118,116080.0,116070.0,1.54484474]
[1752198366630,0.46205118,116080.0,116070.0,1.54484474]
[1752198366927,0.2415394,116080.0,116070.0,1.54484474]
[1752198367231,0.2408594,116080.0,116070.0,1.54484474]
[1752198369534,0.2408594,116080.0,116070.0,1.50177424]
[1752198370228,0.2408594,116080.0,116070.0,1.28127336]
[1752198370532,0.2408594,116080.0,116070.0,1.50178514]
[1752198372836,0.2408594,116080.0,116070.0,0.90630514]
[1752198373037,0.2408594,116080.0,116070.0,1.50126514]
[1752198374238,0.2104594,116080.0,116070.0,1.50126514]
[1752198374537,0.2104594,116080.0,116070.0,1.52437041]
[1752198374738,0.2104594,116080.0,116070.0,1.45446671]
[1752198375238,0.2104594,116080.0,116070.0,1.67497849]
[1752198376840,0.96612208,116090.0,116080.0,0.1722694]
[1752198376841,0.2221447,116090.0,116080.0,0.1722694]
[1752198377040,0.2124547,116090.0,116080.0,1.03579296]
[1752198377945,0.2134547,116090.0,116080.0,1.03579296]
[1752198378642,0.2599876,116090.0,116080.0,1.03579296]
[1752198378842,0.2609876,116090.0,116080.0,1.03579296]
[1752198380844,0.48149938,116090.0,116080.0,0.5947694]
[1752198381046,0.51329938,116090.0,116080.0,1.40992118]
[1752198381747,0.54379938,116090.0,116080.0,1.40992118]
[1752198382645,0.54379938,116090.0,116080.0,1.17595178]
[1752198382849,0.54379938,116090.0,116080.0,1.34822118]
[1752198383848,0.54447938,116090.0,116080.0,1.34822118]
[1752198384249,0.54447938,116090.0,116080.0,1.17595178]
[1752198384449,0.54447938,116090.0,116080.0,1.34822118]
[1752198384844,0.49794648,116090.0,116080.0,1.34822118]
[1752198385044,0.49794648,116090.0,116080.0,1.37942118]
[1752198386550,0.49794648,116090.0,116080.0,1.34822118]
[1752198387152,0.49794648,116090.0,116080.0,1.17595178]
[1752198387351,0.49794648,116090.0,116080.0,1.34822118]
[1752198387854,0.54447938,116090.0,116080.0,1.34822118]
[1752198388151,0.54447938,116090.0,116080.0,1.17595178]
[1752198390652,0.54447938,116090.0,116080.0,1.17555178]
[1752198392656,0.54447938,116090.0,116080.0,0.58131178]
[1752198392853,0.54447938,116090.0,116080.0,0.3608]
[1752198393055,0.54447938,116090.0,116080.0,0.58131178]
[1752198393353,0.3239676,116090.0,116080.0,0.58131178]
[1752198393553,0.54379938,116090.0,116080.0,0.58131178]
[1752198395255,0.54379938,116090.0,116080.0,0.3608]
[1752198395454,0.54447938,116090.0,116080.0,0.58131178]
[1752198395756,0.5599314,116090.0,116080.0,0.58131178]
[1752198397455,1.1538914,116090.0,116080.0,0.58131178]
[1752198401757,1.1538914,116090.0,116080.0,0.3608]
[1752198401960,1.1538914,116090.0,116080.0,0.58131178]
[1752198405555,1.13844224,116090.0,116080.0,0.58131178]
[1752198405763,1.09190648,116090.0,116080.0,0.58131178]
[1752198408061,1.09190648,116090.0,116080.0,0.3608]
[1752198408259,1.13844224,116090.0,116080.0,0.58131178]
[1752198419168,1.13844224,116090.0,116080.0,0.3608]
[1752198419361,1.13844224,116090.0,116080.0,0.58131178]
[1752198419772,0.91793046,116090.0,116080.0,0.58131178]
[1752198419957,0.1722841,116070.0,116060.0,0.43244873]
[1752198420155,0.187439,116060.0,116050.0,0.08657033]
[1752198420361,0.46228078,116060.0,116050.0,0.47939591]
[1752198420562,0.46228078,116060.0,116050.0,0.84019591]
[1752198420766,0.46300079,116060.0,116050.0,0.87159591]
[1752198421268,0.46300079,116060.0,116050.0,0.84081811]
[1752198421470,0.46300079,116060.0,116050.0,0.81772558]
[1752198422275,0.24248901,116060.0,116050.0,0.81972558]
[1752198422568,0.46228078,116060.0,116050.0,0.81972558]
[1752198422865,0.68279256,116060.0,116050.0,0.3658]
[1752198423173,1.07449256,116060.0,116050.0,0.005]
[1752198423467,1.07517256,116060.0,116050.0,0.005]
[1752198423670,1.12170832,116060.0,116050.0,0.004]
[1752198425470,1.19113666,116060.0,116050.0,0.004]
[1752198425971,1.12170832,116060.0,116050.0,0.004]
[1752198427368,1.07517256,116060.0,116050.0,0.004]
[1752198427965,1.12170832,116060.0,116050.0,0.004]
[1752198428164,1.12170832,116060.0,116050.0,0.003]
[1752198428365,1.07517256,116060.0,116050.0,0.003]
[1752198429070,0.634149,116060.0,116050.0,0.003]
[1752198429272,2.26117256,116060.0,116050.0,0.22351178]
[1752198430773,2.26117256,116060.0,116050.0,0.003]
[1752198430774,2.32938447,116060.0,116050.0,0.003]
[1752198434366,1.398449,116060.0,116050.0,0.75662568]
[1752198434562,1.398449,116060.0,116050.0,0.82042568]
[1752198434865,1.61896078,116060.0,116050.0,0.82042568]
[1752198435972,1.66549654,116060.0,116050.0,0.82042568]
[1752198436172,0.25898476,116060.0,116050.0,0.82042568]
[1752198436373,0.211769,116060.0,116050.0,0.82042568]
[1752198436775,0.211769,116060.0,116050.0,0.82051801]
[1752198438073,0.211769,116060.0,116050.0,0.003]
[1752198438074,0.43237311,116060.0,116050.0,0.003]
[1752198438263,0.85535311,116060.0,116050.0,0.003]
[1752198439077,0.90188887,116060.0,116050.0,0.003]
[1752198442783,0.1723139,116050.0,116040.0,7e-08]
[1752198442986,2.27143987,116050.0,116040.0,7e-08]
[1752198443379,2.05083576,116050.0,116040.0,7e-08]
[1752198443880,2.05083576,116050.0,116040.0,0.00300007]
[1752198444076,2.07492576,116050.0,116040.0,0.00300007]
[1752198445691,2.02854801,116050.0,116040.0,0.00300007]
[1752198446194,2.02954801,116050.0,116040.0,0.00300007]
[1752198447991,2.07592576,116050.0,116040.0,0.00300007]
[1752198448495,2.07664577,116050.0,116040.0,0.00300007]
[1752198449392,2.03026802,116050.0,116040.0,0.00300007]
[1752198451296,2.07673616,116050.0,116040.0,0.00300007]
[1752198453397,2.07673616,116050.0,116040.0,7e-08]
[1752198453590,2.05464616,116050.0,116040.0,7e-08]
[1752198454096,1.83404205,116050.0,116040.0,7e-08]
[1752198454305,2.05464616,116050.0,116040.0,7e-08]
[1752198456195,2.00817802,116050.0,116040.0,7e-08]
[1752198456396,2.05464363,116050.0,116040.0,7e-08]
[1752198458989,2.00817802,116050.0,116040.0,7e-08]
[1752198459403,2.05464033,116050.0,116040.0,7e-08]
[1752198460906,2.00817802,116050.0,116040.0,7e-08]
[1752198465898,1.97567802,116050.0,116040.0,7e-08]
[1752198466104,1.192437,116050.0,116040.0,0.03150007]
[1752198466303,1.43713111,116050.0,116040.0,0.06360007]
[1752198469114,1.216527,116050.0,116040.0,0.06360007]
[1752198469304,1.39065802,116050.0,116040.0,0.23592877]
[1752198469808,1.43716963,116050.0,116040.0,0.23592877]
[1752198472009,0.48268963,116050.0,116040.0,0.59672877]
[1752198472209,0.26208552,116050.0,116040.0,0.81733288]
[1752198472411,0.26136551,116050.0,116040.0,0.81733288]
[1752198472717,0.2148539,116050.0,116040.0,0.81733288]
[1752198473817,0.2138539,116050.0,116040.0,0.81733288]
[1752198474114,0.2128539,116050.0,116040.0,0.81733288]
[1752198475516,0.2128539,116050.0,116040.0,1.41093288]
[1752198478118,0.02509,116050.0,116040.0,1.41093288]
[1752198480104,0.02409,116050.0,116040.0,1.41093288]
[1752198480309,0.02409,116050.0,116040.0,1.41293288]
[1752198484321,0.02409,116050.0,116040.0,1.19232877]
[1752198484619,0.02409,116050.0,116040.0,1.41293288]
[1752198487909,0.02409,116050.0,116040.0,1.19232877]
[1752198488208,0.02409,116050.0,116040.0,1.41293288]
[1752198495622,0.07144,116060.0,116050.0,0.1723139]
[1752198495926,0.023,116060.0,116050.0,0.81461801]
[1752198496925,0.024,116060.0,116050.0,0.81461801]
[1752198497724,0.001,116060.0,116050.0,0.81461801]
[1752198497926,0.001,116060.0,116050.0,0.98695401]
[1752198498629,0.001,116060.0,116050.0,0.81461801]
[1752198500224,0.001,116060.0,116050.0,0.83766124]
[1752198502330,0.001,116060.0,116050.0,0.83769823]
[1752198502633,0.001,116060.0,116050.0,0.84539581]
[1752198504051,0.001,116060.0,116050.0,0.84639581]
[1752198505130,0.10114,116070.0,116060.0,0.1722991]
[1752198505332,0.2734242,116070.0,116060.0,0.79492466]
[1752198505832,0.10114,116070.0,116060.0,1.38864466]
[1752198506127,0.10114,116070.0,116060.0,0.79492466]
[1752198506430,0.10214,116070.0,116060.0,1.38856466]
[1752198506631,0.2744242,116070.0,116060.0,1.38856466]
[1752198507030,0.2744242,116070.0,116060.0,1.38852466]
[1752198507330,0.10214,116070.0,116060.0,1.36533049]
[1752198507531,0.10214,116070.0,116060.0,1.37386864]
[1752198508431,0.10214,116070.0,116060.0,0.78038864]
[1752198508632,0.10214,116070.0,116060.0,1.37386864]
[1752198509535,0.10214,116070.0,116060.0,1.40396864]
[1752198510237,0.0868,116070.0,116060.0,1.40396864]
[1752198510437,0.001,116070.0,116060.0,1.64764692]
[1752198510934,0.001,116070.0,116060.0,1.70952472]
[1752198511728,0.001,116070.0,116060.0,1.85877055]
[1752198511931,0.08788,116090.0,116080.0,0.1722694]
[1752198512130,0.08788,116090.0,116080.0,1.36547452]
[1752198512625,0.05608,116090.0,116080.0,1.72627452]
[1752198512826,0.002,116090.0,116080.0,1.75667452]
[1752198513039,0.002,116090.0,116080.0,1.78917452]
[1752198513527,0.003,116090.0,116080.0,1.78917452]
[1752198513931,0.003,116090.0,116080.0,2.25687863]
[1752198514128,0.003,116090.0,116080.0,2.03627452]
[1752198514328,0.003,116090.0,116080.0,1.83872967]
[1752198514536,0.003,116090.0,116080.0,1.46581378]
[1752198514725,0.003,116090.0,116080.0,2.05925378]
[1752198515536,0.003,116090.0,116080.0,2.03619452]
[1752198515726,0.02648,116090.0,116080.0,1.81559041]
[1752198515932,0.02648,116090.0,116080.0,2.03619452]
[1752198516238,0.003,116090.0,116080.0,2.03619452]
[1752198517038,0.003,116090.0,116080.0,1.78909452]
[1752198519238,0.08733161,116130.0,116120.0,0.17221]
[1752198519439,0.0733,116130.0,116120.0,1.35073411]
[1752198519628,0.07262,116130.0,116120.0,1.35073411]
[1752198519829,0.07262,116130.0,116120.0,1.38113411]
[1752198520442,0.05728,116130.0,116120.0,1.38113411]
[1752198520641,0.05728,116130.0,116120.0,1.41423411]
[1752198520940,0.05728,116130.0,116120.0,1.42274831]
[1752198521434,0.002,116130.0,116120.0,1.42274831]
[1752198521641,0.002,116130.0,116120.0,1.81558442]
[1752198522036,0.002,116130.0,116120.0,1.59498031]
[1752198522240,0.005,116130.0,116120.0,1.59598031]
[1752198522744,0.002,116130.0,116120.0,1.42574831]
[1752198523838,0.002,116130.0,116120.0,0.82862831]
[1752198524040,0.002,116130.0,116120.0,1.2050242]
[1752198524338,0.2130151,116130.0,116120.0,1.13293]
[1752198524543,0.10372,116130.0,116120.0,1.13293]
[1752198524745,0.10372,116130.0,116120.0,1.35353411]
[1752198525438,0.10372,116130.0,116120.0,1.36199228]
[1752198525637,0.2759151,116130.0,116120.0,1.35373411]
[1752198525834,0.2759151,116130.0,116120.0,1.13313]
[1752198526142,0.49651921,116130.0,116120.0,0.53601]
[1752198526343,0.49651921,116130.0,116120.0,1.13309]
[1752198526646,0.54303082,116130.0,116120.0,0.53601]
[1752198526840,0.49651921,116130.0,116120.0,0.53601]
[1752198527036,0.49651921,116130.0,116120.0,1.13329]
[1752198527237,0.49651921,116130.0,116120.0,0.53601]
[1752198527544,0.49651921,116130.0,116120.0,1.13321]
[1752198527743,0.32242671,116130.0,116120.0,1.13321]
[1752198528336,0.2759151,116130.0,116120.0,1.13321]
[1752198528539,0.32242671,116130.0,116120.0,1.13321]
[1752198529044,0.2759151,116130.0,116120.0,1.13321]
[1752198529638,0.2759151,116130.0,116120.0,0.53601]
[1752198529844,1.07792332,116130.0,116120.0,0.003]
[1752198530143,0.85803922,116130.0,116120.0,0.003]
[1752198530732,0.85803922,116130.0,116120.0,0.001]
[1752198530944,0.21103,116120.0,116110.0,0.23340567]
[1752198531132,0.49533411,116120.0,116110.0,0.23340567]
[1752198531336,0.49601411,116120.0,116110.0,0.23340567]
[1752198531536,0.49601411,116120.0,116110.0,0.19034967]